bitfinex/quotes_BTCUSD_20250124
["timestamp","ask_amount","ask_price","bid_price","bid_amount"]
[1737756825876,0.209635,105200.0,105190.0,0.0001028]
[1737756826097,0.41114723,105200.0,105190.0,0.0001028]
[1737756826335,0.44114723,105200.0,105190.0,0.0001028]
[1737756826847,0.59114723,105200.0,105190.0,0.0001028]
[1737756827249,1.58094723,105200.0,105190.0,0.0001028]
[1737756827580,1.68511217,105200.0,105190.0,0.0001028]
[1737756828082,1.78245946,105200.0,105190.0,8e-07]
[1737756828283,1.8082319,105200.0,105190.0,8e-07]
[1737756828436,1.71088461,105200.0,105190.0,8e-07]
[1737756830287,1.71828461,105200.0,105190.0,8e-07]
[1737756830648,1.71928461,105200.0,105190.0,8e-07]
[1737756832055,0.45381394,105190.0,105180.0,0.0001415]
[1737756832257,0.65532617,105190.0,105180.0,0.0001415]
[1737756832642,0.65532617,105190.0,105180.0,0.0001015]
[1737756837981,0.229662,105180.0,105170.0,0.00012463]
[1737756838187,0.53533917,105180.0,105170.0,0.00012463]
[1737756839287,0.53533917,105180.0,105170.0,0.00021846]
[1737756839889,0.62023095,105180.0,105170.0,0.00021846]
[1737756840349,0.62763095,105180.0,105170.0,0.00021846]
[1737756841062,0.53318095,105180.0,105170.0,0.00021846]
[1737756841259,0.43641601,105180.0,105170.0,0.00021846]
[1737756841471,0.54058095,105180.0,105170.0,0.00021846]
[1737756842579,0.56058095,105180.0,105170.0,0.00021846]
[1737756843112,0.54058095,105180.0,105170.0,0.00021846]
[1737756843578,0.32485107,105180.0,105170.0,0.13071846]
[1737756843777,0.40058351,105180.0,105170.0,0.13071846]
[1737756843936,0.46891595,105180.0,105170.0,0.13071846]
[1737756844942,0.38402417,105180.0,105170.0,0.13071846]
[1737756846015,0.37662417,105180.0,105170.0,0.27334446]
[1737756846220,0.38402417,105180.0,105170.0,0.13071846]
[1737756846423,0.37662417,105180.0,105170.0,0.13071846]
[1737756846628,0.38402417,105180.0,105170.0,0.13071846]
[1737756849976,0.38402417,105180.0,105170.0,0.27334446]
[1737756850231,0.37662417,105180.0,105170.0,0.27334446]
[1737756850469,0.38402417,105180.0,105170.0,0.27334446]
[1737756850705,0.0074,105180.0,105170.0,0.27334446]
[1737756850908,0.07573244,105180.0,105170.0,0.27334446]
[1737756851324,0.03572115,105180.0,105170.0,0.27334446]
[1737756851530,0.17833315,105180.0,105170.0,0.27334446]
[1737756852817,0.24666559,105180.0,105170.0,0.13071846]
[1737756853019,0.24666559,105180.0,105170.0,0.27334446]
[1737756853282,0.24666559,105180.0,105170.0,0.13071846]
[1737756853454,0.24666559,105180.0,105170.0,0.27334446]
[1737756854465,0.24666559,105180.0,105170.0,0.13071846]
[1737756854674,0.24666559,105180.0,105170.0,0.27334446]
[1737756856004,0.21834444,105180.0,105170.0,0.27334446]
[1737756856593,0.28667688,105180.0,105170.0,0.27334446]
[1737756858437,0.21834444,105180.0,105170.0,0.27334446]
[1737756858638,0.28667688,105180.0,105170.0,0.27334446]
[1737756861355,0.06833244,105180.0,105170.0,0.27334446]
[1737756861564,0.8686,105190.0,105180.0,0.243312]
[1737756862033,0.93693244,105190.0,105180.0,0.243312]
[1737756862223,0.8686,105190.0,105180.0,0.243312]
[1737756863387,0.93693244,105190.0,105180.0,0.243312]
[1737756863807,0.97270457,105190.0,105180.0,0.243312]
[1737756864246,0.8686,105190.0,105180.0,0.243312]
[1737756864986,0.97270457,105190.0,105180.0,0.243312]
[1737756865850,0.10410457,105190.0,105180.0,0.243312]
[1737756868378,0.10410457,105190.0,105180.0,0.24288853]
[1737756870853,0.43681657,105200.0,105190.0,0.142599]
[1737756871216,0.24670157,105200.0,105190.0,0.142599]
[1737756872854,0.43682157,105200.0,105180.0,0.623575]
[1737756873159,0.43682157,105200.0,105180.0,0.813716]
[1737756873160,0.62694457,105200.0,105180.0,0.813716]
[1737756873407,0.00029779,105190.0,105180.0,0.480974]
[1737756877988,0.24700136,105190.0,105180.0,0.0777]
[1737756878188,0.43713536,105190.0,105180.0,0.142612]
[1737756879402,0.43713536,105190.0,105170.0,0.50533346]
[1737756879604,0.48468136,105190.0,105170.0,0.48079846]
[1737756879808,0.62729036,105190.0,105170.0,0.67095746]
[1737756880218,0.43714536,105190.0,105170.0,0.67095646]
[1737756880420,0.43714536,105190.0,105180.0,0.142612]
[1737756881379,0.24701136,105190.0,105180.0,0.142612]
[1737756881667,0.14290679,105190.0,105180.0,0.142612]
[1737756883791,0.21123523,105190.0,105180.0,0.142612]
[1737756885557,0.21123523,105190.0,105180.0,0.1427538]
[1737756887398,0.21123523,105190.0,105180.0,0.0001418]
[1737756887605,0.21123523,105190.0,105180.0,0.1427538]
[1737756889721,0.21123523,105190.0,105180.0,0.0001418]
[1737756890391,0.21123523,105190.0,105180.0,0.1427538]
[1737756896303,0.06862623,105190.0,105180.0,0.1427538]
[1737756896529,0.00029779,105190.0,105180.0,0.1427538]
[1737756896915,0.06862623,105190.0,105180.0,0.1427538]
[1737756897529,0.21122523,105190.0,105180.0,0.1427538]
[1737756898682,0.00029779,105190.0,105180.0,0.1427538]
[1737756899105,0.06862623,105190.0,105180.0,0.1427538]
[1737756900708,0.21122523,105190.0,105180.0,0.1427538]
[1737756901485,0.06862623,105190.0,105180.0,0.1427538]
[1737756903035,0.21122523,105190.0,105180.0,0.1427538]
[1737756903403,0.06862623,105190.0,105180.0,0.1427538]
[1737756903934,0.21122523,105190.0,105180.0,0.1427538]
[1737756904946,0.29611701,105190.0,105180.0,0.1427538]
[1737756909455,0.4410643,105190.0,105180.0,0.0001418]
[1737756911322,0.21094044,105180.0,105170.0,0.19035049]
[1737756913205,0.21094044,105180.0,105170.0,0.00018349]
[1737756913631,0.21094044,105180.0,105170.0,0.14280949]
[1737756914637,0.21094044,105180.0,105170.0,0.00018349]
[1737756914963,0.45191617,105180.0,105170.0,0.00018349]
[1737756915395,0.60191617,105180.0,105170.0,0.00018349]
[1737756915596,0.68727701,105180.0,105170.0,0.00018349]
[1737756918885,0.60191617,105180.0,105170.0,0.00018349]
[1737756920962,0.60221396,105180.0,105170.0,0.00018349]
[1737756923613,0.68742664,105180.0,105170.0,0.00018349]
[1737756926016,0.73492664,105180.0,105170.0,0.00018349]
[1737756926355,0.76492664,105180.0,105170.0,0.00018349]
[1737756926574,0.83325508,105180.0,105170.0,0.00018349]
[1737756926764,0.89030508,105180.0,105170.0,0.00018349]
[1737756926976,0.90030508,105180.0,105170.0,0.00018349]
[1737756928326,0.52309,105150.0,105130.0,0.41287631]
[1737756928517,0.68876573,105150.0,105130.0,0.41287631]
[1737756928653,0.21099444,105140.0,105130.0,0.27020531]
[1737756928852,0.142666,105140.0,105130.0,0.27020531]
[1737756929374,0.463066,105140.0,105130.0,0.27020531]
[1737756929783,0.53139444,105140.0,105130.0,0.27020531]
[1737756929936,0.53154144,105140.0,105130.0,0.27020531]
[1737756930150,0.463213,105140.0,105130.0,0.27020531]
[1737756930769,0.53154144,105140.0,105130.0,0.27020531]
[1737756932444,0.53154144,105140.0,105130.0,7.631e-05]
[1737756932445,0.30848873,105140.0,105130.0,7.631e-05]
[1737756936012,0.30848873,105140.0,105130.0,0.14275631]
[1737756936414,0.30848873,105140.0,105130.0,7.631e-05]
[1737756941179,0.30848873,105140.0,105130.0,0.14275631]
[1737756942541,0.30848873,105140.0,105130.0,7.631e-05]
[1737756944283,0.30848873,105140.0,105130.0,0.00021811]
[1737756956552,0.31817972,105140.0,105130.0,0.00021811]
[1737756958304,0.30848873,105140.0,105130.0,0.00021811]
[1737756965646,0.24016029,105140.0,105130.0,0.00021811]
[1737756966241,0.30848873,105140.0,105130.0,0.00021811]
[1737756974748,0.39354576,105140.0,105130.0,0.00021811]
[1737756976750,0.4618742,105140.0,105130.0,0.00021811]
[1737756976955,0.5370742,105140.0,105130.0,0.00021811]
[1737756978551,0.14268,105130.0,105120.0,8.399e-05]
[1737756978754,0.30835573,105130.0,105120.0,0.14277799]
[1737756978908,0.24002729,105130.0,105120.0,0.14277799]
[1737756980877,0.30835573,105130.0,105120.0,0.14277799]
[1737756981270,0.30835573,105130.0,105120.0,8.399e-05]
[1737756982757,0.45835573,105130.0,105120.0,8.399e-05]
[1737756983761,0.30835573,105130.0,105120.0,8.399e-05]
[1737756985824,0.3936333,105130.0,105120.0,8.399e-05]
[1737756987169,0.3936333,105130.0,105120.0,0.14277799]
[1737756988504,0.30835573,105130.0,105120.0,0.14277799]
[1737756989558,0.08542457,105140.0,105130.0,0.22098]
[1737756989772,0.08542457,105140.0,105130.0,0.36382729]
[1737756989979,0.08542457,105140.0,105130.0,0.39351047]
[1737756990385,0.08542457,105140.0,105130.0,0.29616318]
[1737756992911,0.08542457,105140.0,105130.0,0.30573132]
[1737756993620,0.08542457,105140.0,105130.0,0.27604814]
[1737756995536,0.000147,105140.0,105130.0,0.54639543]
[1737756995735,0.000147,105140.0,105130.0,0.59479306]
[1737756996392,0.000147,105140.0,105130.0,0.57179306]
[1737756996596,0.000147,105140.0,105130.0,0.54216539]
[1737756997012,0.000147,105140.0,105130.0,0.4448181]
[1737756997213,0.000147,105140.0,105130.0,0.42604814]
[1737756997422,0.000147,105140.0,105130.0,0.27604814]
[1737756997799,0.000147,105140.0,105130.0,0.26648]
[1737756998168,0.000147,105140.0,105130.0,0.22098]
[1737757004392,0.000445,105140.0,105130.0,0.22098]
[1737757009827,0.000445,105140.0,105130.0,0.14168]
[1737757010392,0.000445,105140.0,105120.0,0.8677577]
[1737757010393,0.14268,105130.0,105120.0,0.14277799]
[1737757011528,0.85591622,105140.0,105120.0,0.33302699]
[1737757012324,1.04615322,105140.0,105120.0,0.33302699]
[1737757013105,0.85591622,105140.0,105120.0,0.33302699]
[1737757013755,0.85591222,105140.0,105120.0,0.33302699]
[1737757014153,0.14268,105130.0,105120.0,0.14277799]
[1737757014383,0.14268,105130.0,105120.0,8.399e-05]
[1737757015331,0.14268,105130.0,105120.0,0.14277799]
[1737757018791,0.14268,105130.0,105120.0,8.399e-05]
[1737757019831,0.14268,105130.0,105120.0,0.14277799]
[1737757022558,0.85591222,105140.0,105120.0,0.14277799]
[1737757022762,0.000445,105140.0,105130.0,0.14268]
[1737757023445,0.000445,105140.0,105130.0,0.22328]
[1737757028710,0.000445,105140.0,105130.0,0.24196436]
[1737757030004,0.000445,105140.0,105130.0,0.25144615]
[1737757039543,0.000445,105140.0,105130.0,0.25158795]
[1737757051074,0.000445,105140.0,105130.0,0.23290359]
[1737757053769,0.000445,105140.0,105130.0,0.15230359]
[1737757054526,0.000445,105140.0,105130.0,0.18196055]
[1737757054813,0.000445,105140.0,105130.0,0.18291154]
[1737757061552,0.000445,105140.0,105130.0,0.53325883]
[1737757061768,0.000445,105140.0,105130.0,0.53230784]
[1737757066423,0.5183548,105170.0,105160.0,0.142639]
[1737757066594,0.51840402,105170.0,105160.0,0.142639]
[1737757066935,0.32823602,105170.0,105160.0,0.142639]
[1737757067151,0.27188322,105170.0,105160.0,0.142639]
[1737757069266,0.34024077,105170.0,105160.0,0.142639]
[1737757069479,0.27188322,105170.0,105160.0,0.142639]
[1737757072378,0.34024077,105170.0,105160.0,0.142639]
[1737757074660,0.27188322,105170.0,105160.0,0.1427807]
[1737757074866,0.2721808,105170.0,105160.0,0.1427807]
[1737757075597,0.1295468,105170.0,105160.0,0.1427807]
[1737757075809,0.2721728,105170.0,105160.0,0.1427807]
[1737757076222,0.34053035,105170.0,105160.0,0.0001417]
[1737757077233,0.34053035,105170.0,105160.0,0.1427807]
[1737757077859,0.34053035,105170.0,105160.0,0.0001417]
[1737757078282,0.2721728,105170.0,105160.0,0.1427807]
[1737757078515,0.34053035,105170.0,105160.0,0.0001417]
[1737757078694,0.31053035,105170.0,105160.0,0.0001417]
[1737757081445,0.6225178,105170.0,105150.0,0.5198847]
[1737757081647,0.8126978,105170.0,105150.0,0.5198847]
[1737757081848,0.8126978,105170.0,105150.0,0.3296817]
[1737757082081,0.6225178,105170.0,105150.0,0.3296817]
[1737757082288,0.69087535,105170.0,105150.0,0.3296817]
[1737757083226,0.88105535,105170.0,105150.0,0.3296817]
[1737757083474,0.69087535,105170.0,105150.0,0.3296817]
[1737757084209,0.69087535,105170.0,105150.0,0.5198857]
[1737757084474,0.47720155,105160.0,105140.0,0.523076]
[1737757084713,0.59904,105160.0,105140.0,0.523076]
[1737757084970,0.59904,105160.0,105140.0,0.332863]
[1737757085223,0.59904,105160.0,105140.0,0.523084]
[1737757085470,0.408842,105160.0,105140.0,0.332863]
[1737757085720,0.599036,105160.0,105140.0,0.332863]
[1737757085925,0.66739355,105160.0,105140.0,0.523084]
[1737757086167,0.85759255,105160.0,105140.0,0.332863]
[1737757086401,0.66739355,105160.0,105140.0,0.332863]
[1737757086647,0.47719755,105160.0,105150.0,0.0001418]
[1737757091444,0.40884,105160.0,105150.0,0.0001418]
[1737757092297,0.40732,105160.0,105150.0,0.0001418]
[1737757097181,0.68788239,105160.0,105150.0,0.0001418]
[1737757097581,0.83788239,105160.0,105150.0,0.0001418]
[1737757100527,0.21102355,105140.0,105130.0,0.00010733]
[1737757107811,0.14268,105130.0,105120.0,0.33267348]
[1737757107941,0.14268,105130.0,105120.0,0.190257]
[1737757109028,0.14268,105130.0,105120.0,0.19074996]
[1737757111687,0.44882555,105140.0,105120.0,0.19074996]
[1737757111887,0.332907,105140.0,105130.0,0.14268]
[1737757112104,0.142676,105140.0,105130.0,0.14268]
[1737757116040,0.21103355,105140.0,105130.0,0.14268]
[1737757116454,0.142676,105140.0,105130.0,0.14268]
[1737757117855,0.21103355,105140.0,105130.0,0.14268]
[1737757118633,0.06835755,105140.0,105130.0,0.14268]
[1737757119238,0.142666,105140.0,105130.0,0.14268]
[1737757120176,0.21102355,105140.0,105130.0,0.14268]
[1737757120382,0.142666,105140.0,105130.0,0.14268]
[1737757120932,0.72889455,105150.0,105130.0,0.14268]
[1737757121141,0.82624184,105150.0,105130.0,0.523155]
[1737757122033,0.00029779,105140.0,105130.0,0.332915]
[1737757125708,0.00029779,105140.0,105130.0,0.50986229]
[1737757125956,0.00029779,105140.0,105130.0,0.59868844]
[1737757126078,0.00029779,105140.0,105130.0,0.74868844]
[1737757130718,0.00029779,105140.0,105130.0,0.76763152]
[1737757131328,0.00029779,105140.0,105130.0,0.79063152]
[1737757133492,0.00029779,105140.0,105130.0,0.79077332]
[1737757147533,0.00029779,105140.0,105130.0,0.80077332]
[1737757147744,7.9e-07,105140.0,105130.0,0.82077332]
[1737757151315,0.00029758,105160.0,105150.0,0.273853]
[1737757151513,0.00029758,105160.0,105150.0,0.42381648]
[1737757153193,0.00029758,105160.0,105150.0,0.43381648]
[1737757159898,0.00029758,105160.0,105150.0,0.45284842]
[1737757160721,0.00029758,105160.0,105150.0,0.46242947]
[1737757163848,0.00029758,105160.0,105150.0,0.63242947]
[1737757165822,0.31099516,105170.0,105160.0,0.165639]
[1737757165999,0.31099516,105170.0,105160.0,0.29355319]
[1737757166358,0.31099516,105170.0,105160.0,0.29260248]
[1737757166903,0.31108879,105170.0,105160.0,0.29260248]
[1737757169110,0.31138658,105170.0,105160.0,0.29260248]
[1737757169931,0.31138658,105170.0,105160.0,0.54870248]
[1737757170848,0.27335258,105170.0,105160.0,0.54870248]
[1737757171727,0.00039142,105170.0,105160.0,0.54870248]
[1737757175390,0.27296116,105190.0,105180.0,0.175612]
[1737757175594,0.27296116,105190.0,105180.0,0.37962593]
[1737757175595,0.19720695,105190.0,105180.0,0.37962593]
[1737757175805,0.19720695,105190.0,105180.0,0.37867548]
[1737757176015,0.17468729,105190.0,105180.0,0.37867548]
[1737757176276,0.12869779,105210.0,105200.0,0.315585]
[1737757176466,0.00044545,105210.0,105200.0,0.41293229]
[1737757176584,0.00044545,105210.0,105200.0,0.42293229]
[1737757176784,0.00044545,105210.0,105200.0,0.45248567]
[1737757177456,0.00044545,105210.0,105200.0,0.42293229]
[1737757179454,0.00044545,105210.0,105200.0,0.44153974]
[1737757180956,0.00044545,105210.0,105200.0,0.45091823]
[1737757183043,0.08034545,105210.0,105200.0,0.41791823]
[1737757183250,0.12884545,105210.0,105200.0,0.41791823]
[1737757184354,0.12884545,105210.0,105200.0,0.30196349]
[1737757184838,0.12884545,105210.0,105200.0,0.42231078]
[1737757185038,0.00044545,105210.0,105200.0,0.42231078]
[1737757186467,0.24403274,105220.0,105210.0,0.142571]
[1737757186643,0.24403274,105220.0,105210.0,0.24086862]
[1737757186878,0.24403274,105220.0,105210.0,0.23991829]
[1737757190547,0.24403274,105220.0,105210.0,0.25850996]
[1737757194458,0.24433032,105220.0,105210.0,0.25850996]
[1737757199056,0.23433032,105220.0,105210.0,0.25850996]
[1737757204544,0.00029758,105220.0,105210.0,0.49830996]
[1737757204721,0.00029758,105220.0,105210.0,0.59720551]
[1737757204898,0.00029779,105240.0,105230.0,0.292544]
[1737757205071,0.00029779,105240.0,105230.0,0.44248684]
[1737757207718,0.00029779,105240.0,105230.0,0.41948684]
[1737757208280,0.27242853,105250.0,105240.0,0.142531]
[1737757208501,0.27257617,105250.0,105240.0,0.142531]
[1737757214179,0.27257617,105250.0,105240.0,0.24082845]
[1737757214388,0.27257617,105250.0,105240.0,0.23987829]
[1737757214598,0.27257617,105250.0,105240.0,0.24952782]
[1737757215149,0.27257617,105250.0,105240.0,0.15218053]
[1737757217358,0.27287375,105250.0,105240.0,0.15218053]
[1737757229949,0.27287375,105250.0,105240.0,0.15232223]
[1737757233088,0.27287375,105250.0,105240.0,0.50101965]
[1737757233089,0.00044522,105250.0,105240.0,0.50101965]
[1737757233328,0.00044522,105250.0,105240.0,0.52965464]
[1737757234667,0.00044522,105250.0,105240.0,0.53965464]
[1737757236489,0.00044522,105250.0,105240.0,0.52965464]
[1737757240042,0.00472032,105250.0,105240.0,0.52965464]
[1737757254819,0.08452032,105250.0,105240.0,0.42925464]
[1737757254989,0.13212032,105250.0,105240.0,0.42925464]
[1737757255196,0.12784522,105250.0,105240.0,0.42925464]
[1737757255398,0.1328947,105250.0,105240.0,0.39966952]
[1737757255976,0.1328947,105250.0,105240.0,0.42924721]
[1737757257513,0.1328947,105250.0,105240.0,0.33189992]
[1737757258496,0.1328947,105250.0,105240.0,0.18189992]
[1737757258697,0.1328947,105250.0,105240.0,0.1426727]
[1737757258902,0.2754117,105250.0,105240.0,0.1426727]
[1737757259079,0.2754117,105250.0,105240.0,0.0001417]
[1737757259981,0.34360792,105250.0,105240.0,0.0001417]
[1737757261018,0.2754117,105250.0,105240.0,0.0001417]
[1737757261496,0.44095521,105250.0,105240.0,0.0001417]
[1737757261808,0.47675311,105250.0,105240.0,0.0001417]
[1737757262829,0.62675311,105250.0,105240.0,0.0001417]
[1737757263878,0.63387311,105250.0,105240.0,0.0001417]
[1737757264830,0.266131,105240.0,105230.0,0.00024596]
[1737757265251,0.27029591,105240.0,105230.0,0.00024596]
[1737757271016,0.266131,105240.0,105230.0,0.00024596]
[1737757273953,0.266131,105240.0,105230.0,0.14278996]
[1737757275606,0.266131,105240.0,105230.0,0.14293166]
[1737757276148,0.266131,105240.0,105230.0,0.15177643]
[1737757276744,0.1236,105240.0,105230.0,0.15177643]
[1737757277326,0.0472,105240.0,105230.0,0.15177643]
[1737757285139,0.0472,105240.0,105230.0,0.14293166]
[1737757286924,0.04749758,105240.0,105230.0,0.14293166]
[1737757296958,0.04749758,105240.0,105230.0,0.15231535]
[1737757300525,0.04749758,105240.0,105230.0,0.14293166]
[1737757301941,0.0518817,105240.0,105230.0,0.14293166]
[1737757305273,0.1944127,105240.0,105230.0,0.14293166]
[1737757305443,0.0518817,105240.0,105230.0,0.14293166]
[1737757308794,0.0518817,105240.0,105230.0,0.17261177]
[1737757311837,0.0046817,105240.0,105230.0,0.17261177]
[1737757311977,0.0046817,105240.0,105230.0,0.25036198]
[1737757312163,0.0046817,105240.0,105230.0,0.24941177]
[1737757317621,0.0046817,105240.0,105230.0,0.34675906]
[1737757318231,0.0046817,105240.0,105230.0,0.36975906]
[1737757318644,0.0046817,105240.0,105230.0,0.41545906]
[1737757320668,0.0046817,105240.0,105230.0,0.43414976]
[1737757322048,0.0046817,105240.0,105230.0,0.58414976]
[1737757322249,7e-07,105240.0,105230.0,0.59414976]
[1737757322456,9e-08,105240.0,105230.0,0.61414976]
[1737757322880,0.00044522,105250.0,105240.0,0.318031]
[1737757323142,0.00044522,105250.0,105240.0,0.5950584]
[1737757329342,0.00044522,105250.0,105240.0,0.60466841]
[1737757341129,0.00044522,105250.0,105240.0,0.58466841]
[1737757341371,0.00044522,105250.0,105240.0,0.60466841]
[1737757344938,0.00044522,105250.0,105240.0,0.60481021]
[1737757346089,0.00044522,105250.0,105240.0,0.55911021]
[1737757346299,0.00044522,105250.0,105240.0,0.54911021]
[1737757346482,0.00044522,105250.0,105240.0,0.55911021]
[1737757346890,0.00044522,105250.0,105240.0,0.54911021]
[1737757355790,0.00483908,105250.0,105240.0,0.54911021]
[1737757357244,0.00483908,105250.0,105240.0,0.55911021]
[1737757365626,0.00483908,105250.0,105240.0,0.53911021]
[1737757365826,0.00483908,105250.0,105240.0,0.55911021]
[1737757371768,0.00483908,105250.0,105240.0,0.53911021]
[1737757371984,0.00483908,105250.0,105240.0,0.55911021]
[1737757373061,0.00483908,105250.0,105240.0,0.6446149]
[1737757374449,0.00483908,105250.0,105240.0,0.5148149]
[1737757374633,0.13243908,105250.0,105240.0,0.5148149]
[1737757377885,0.45283908,105250.0,105240.0,0.3648149]
[1737757378077,0.59535608,105250.0,105240.0,0.3648149]
[1737757378233,0.59535608,105250.0,105240.0,0.2578576]
[1737757378439,0.45283908,105250.0,105240.0,0.22817749]
[1737757380095,0.45283908,105250.0,105240.0,0.1426728]
[1737757381596,0.66360293,105250.0,105240.0,0.1426728]
[1737757382670,0.66360293,105250.0,105240.0,0.0001418]
[1737757386603,0.82919707,105250.0,105240.0,0.0001418]
[1737757387195,0.76095022,105250.0,105240.0,0.0001418]
[1737757388346,0.76803022,105250.0,105240.0,0.0001418]
[1737757388549,0.83627707,105250.0,105240.0,0.0001418]
[1737757388972,0.76803022,105250.0,105240.0,0.0001418]
[1737757390089,0.76095022,105250.0,105240.0,0.0001418]
[1737757390530,0.76803022,105250.0,105240.0,0.0001418]
[1737757391799,0.44763022,105250.0,105240.0,0.0001418]
[1737757393722,0.51587707,105250.0,105240.0,0.0001418]
[1737757394508,0.44763022,105250.0,105240.0,0.0001418]
[1737757395120,0.44055022,105250.0,105240.0,0.0001418]
[1737757395327,0.44763022,105250.0,105240.0,0.0001418]
[1737757396695,0.51587707,105250.0,105240.0,0.0001418]
[1737757396904,0.44763022,105250.0,105240.0,0.0001418]
[1737757397115,0.44055022,105250.0,105240.0,0.0001418]
[1737757397319,0.44763022,105250.0,105240.0,0.0001418]
[1737757397753,0.37938337,105250.0,105240.0,0.0001418]
[1737757405719,0.37498951,105250.0,105240.0,0.0001418]
[1737757407250,0.142531,105240.0,105230.0,0.14287985]
[1737757408660,0.122531,105240.0,105230.0,0.14287985]
[1737757413476,0.122531,105240.0,105230.0,0.00033685]
[1737757414119,0.122531,105240.0,105230.0,0.14288085]
[1737757424530,0.203631,105240.0,105230.0,0.14288085]
[1737757424941,0.20392879,105240.0,105230.0,0.14288085]
[1737757436132,0.20392879,105240.0,105230.0,0.00033685]
[1737757436357,0.20392879,105240.0,105230.0,0.14288085]
[1737757436614,0.20392879,105240.0,105230.0,0.00033685]
[1737757437930,0.39397279,105240.0,105220.0,0.71263206]
[1737757438125,0.39397279,105240.0,105220.0,0.74231198]
[1737757439195,0.3204,105230.0,105220.0,0.36217598]
[1737757444574,0.462944,105230.0,105220.0,0.02967992]
[1737757444782,0.653007,105230.0,105210.0,0.6292582]
[1737757444997,0.653007,105230.0,105210.0,0.5995767]
[1737757445218,0.3204,105220.0,105210.0,0.43917022]
[1737757445663,0.332607,105230.0,105210.0,0.43917022]
[1737757445892,0.332607,105230.0,105210.0,0.62925322]
[1737757446104,0.332607,105230.0,105210.0,0.81933922]
[1737757446538,0.522676,105230.0,105210.0,0.62925322]
[1737757446760,0.522676,105230.0,105210.0,0.81934122]
[1737757446968,0.332607,105230.0,105210.0,0.81934122]
[1737757447602,0.332607,105230.0,105210.0,0.62925322]
[1737757447812,0.332607,105230.0,105220.0,0.1426998]
[1737757448048,0.33290479,105230.0,105220.0,0.1426998]
[1737757449147,0.33290479,105230.0,105220.0,0.0001418]
[1737757451318,0.70445208,105230.0,105220.0,0.0001418]
[1737757451826,0.79447208,105230.0,105220.0,0.0001418]
[1737757452697,0.2742,105220.0,105200.0,0.0001417]
[1737757452893,0.52115829,105210.0,105200.0,0.0001417]
[1737757453417,0.1242,105200.0,105180.0,0.08550469]
[1737757453666,0.23994629,105190.0,105180.0,0.08550469]
[1737757454324,0.23994629,105190.0,105180.0,0.08565235]
[1737757455770,0.23994629,105190.0,105180.0,0.00014766]
[1737757456851,0.31534629,105190.0,105180.0,0.00014766]
[1737757461005,0.31534629,105190.0,105180.0,0.00028946]
[1737757461956,0.32504036,105190.0,105180.0,0.00028946]
[1737757464437,0.37384036,105190.0,105180.0,0.00028946]
[1737757464970,0.58086036,105190.0,105180.0,0.00028946]
[1737757465206,0.52384036,105190.0,105180.0,0.00028946]
[1737757467520,0.56187836,105190.0,105180.0,0.00028946]
[1737757471230,0.56187836,105190.0,105180.0,4.6e-07]
[1737757471231,0.78586965,105190.0,105180.0,4.6e-07]
[1737757471457,0.430726,105170.0,105160.0,0.0001417]
[1737757471702,0.57811329,105170.0,105160.0,0.0001417]
[1737757472130,0.60172895,105170.0,105160.0,0.0001417]
[1737757472284,0.62566491,105170.0,105160.0,0.0001417]
[1737757472530,0.67268491,105170.0,105160.0,7e-07]
[1737757472956,0.62513329,105170.0,105160.0,7e-07]
[1737757473327,0.292653,105150.0,105140.0,0.0001418]
[1737757473611,0.46950029,105150.0,105140.0,0.00063476]
[1737757474124,0.51810029,105150.0,105140.0,0.00063476]
[1737757476670,0.52514029,105150.0,105140.0,0.00063476]
[1737757477442,0.54401432,105150.0,105140.0,0.00063476]
[1737757479333,0.57677987,105150.0,105140.0,0.00063476]
[1737757480309,0.56973987,105150.0,105140.0,0.00063476]
[1737757480512,0.57677987,105150.0,105140.0,0.00063476]
[1737757481809,0.58058487,105150.0,105140.0,0.00063476]
[1737757488940,0.142666,105140.0,105130.0,4.344e-05]
[1737757489157,0.24001329,105140.0,105130.0,0.00013707]
[1737757493927,0.26301329,105140.0,105130.0,0.00013707]
[1737757494555,0.24001329,105140.0,105130.0,0.07703707]
[1737757498707,0.24705329,105140.0,105130.0,0.07703707]
[1737757500490,0.24705329,105140.0,105130.0,0.00013707]
[1737757500722,0.27005329,105140.0,105130.0,0.00013707]
[1737757501389,0.42005329,105140.0,105130.0,0.00013707]
[1737757501609,0.50125329,105140.0,105130.0,0.00013707]
[1737757502271,0.29268,105130.0,105120.0,0.00012056]
[1737757502486,0.39002729,105130.0,105120.0,0.00012056]
[1737757505105,0.43922729,105130.0,105120.0,0.00012056]
[1737757505733,0.142694,105120.0,105110.0,0.07702329]
[1737757505957,0.24004129,105120.0,105110.0,0.07702329]
[1737757506829,0.34134129,105120.0,105110.0,0.00012329]
[1737757509932,0.49134129,105120.0,105110.0,0.00012329]
[1737757510740,0.60746129,105120.0,105110.0,0.00012329]
[1737757513426,0.81759291,105120.0,105110.0,2.9e-07]
[1737757513636,0.445848,105080.0,105070.0,0.0002018]
[1737757513848,0.55023529,105080.0,105070.0,8e-07]
[1737757514090,0.77210955,105080.0,105070.0,8e-07]
[1737757514943,0.75210955,105080.0,105070.0,8e-07]
[1737757517760,0.82846235,105080.0,105070.0,8e-07]
[1737757517966,0.70848235,105080.0,105070.0,8e-07]
[1737757518366,0.175775,105060.0,105050.0,0.001]
[1737757518604,0.30376098,105060.0,105050.0,0.00109379]
[1737757519404,1.17236098,105060.0,105050.0,0.00109379]
[1737757519576,1.24936098,105060.0,105050.0,0.00109379]
[1737757519780,1.28846098,105060.0,105050.0,0.00109379]
[1737757520011,1.61282827,105060.0,105050.0,7.9e-07]
[1737757520427,1.51548098,105060.0,105050.0,7.9e-07]
[1737757521617,0.64688098,105060.0,105050.0,7.9e-07]
[1737757521845,0.67268531,105060.0,105050.0,7.9e-07]
[1737757522060,0.64988098,105060.0,105050.0,7.9e-07]
[1737757522429,0.67268531,105060.0,105050.0,7.9e-07]
[1737757522972,0.6920246,105060.0,105050.0,7.9e-07]
[1737757523174,0.66922027,105060.0,105050.0,7.9e-07]
[1737757523507,0.67626027,105060.0,105050.0,7.9e-07]
[1737757523711,0.6990646,105060.0,105050.0,7.9e-07]
[1737757524056,0.6790646,105060.0,105050.0,7.9e-07]
[1737757524702,0.68868394,105060.0,105050.0,7.9e-07]
[1737757525373,0.68868394,105060.0,105030.0,0.0001418]
[1737757525374,0.71322121,105040.0,105030.0,0.0001418]
[1737757525585,0.56596929,105040.0,105030.0,0.0006326]
[1737757526557,0.56596929,105040.0,104990.0,0.0158546]
[1737757526558,0.359877,105000.0,104990.0,0.0158546]
[1737757526772,0.46426429,105000.0,104990.0,0.0158546]
[1737757527263,0.48726429,105000.0,104990.0,0.0158546]
[1737757527882,0.47764724,105000.0,104990.0,0.0158546]
[1737757528916,0.48764724,105000.0,104990.0,0.0158546]
[1737757530682,1.28922724,105000.0,104990.0,0.0158546]
[1737757530975,1.28218724,105000.0,104990.0,0.0158546]
[1737757531179,1.28922724,105000.0,104990.0,0.0159965]
[1737757532447,1.29872035,105000.0,104990.0,0.0159965]
[1737757534564,0.14323995,105000.0,104990.0,0.2381665]